bitfinex-derivatives/quotes_ETHF0:USTF0_20240923
["timestamp","ask_amount","ask_price","bid_price","bid_amount"]
[1727121617345,1.34691968,2673.3,2673.2,3.2078]
[1727121617547,0.37407,2673.1,2672.8,45.0874]
[1727121618149,0.37407,2673.1,2673.0,0.37408]
[1727121618552,2.41983469,2673.2,2673.1,0.37407]
[1727121619351,1.44707,2673.2,2673.1,0.37407]
[1727121620148,0.37409,2673.0,2672.9,0.3741]
[1727121620549,1.34685469,2673.0,2672.9,0.3741]
[1727121621143,1.34684469,2673.1,2672.9,0.3741]
[1727121621350,0.9721393,2673.1,2672.8,41.8796]
[1727121621560,0.9721393,2673.1,2672.9,0.3741]
[1727121621561,0.3741,2673.0,2672.9,0.3741]
[1727121621753,1.3462393,2673.0,2672.9,0.3741]
[1727121621955,0.3741,2672.9,2672.8,42.25371]
[1727121622156,0.3741,2672.9,2672.8,41.17411]
[1727121622960,0.3741,2673.0,2672.8,41.17411]
[1727121623165,0.3741,2672.9,2672.8,40.8]
[1727121623354,0.9721393,2673.1,2672.8,40.8]
[1727121623753,1.3462193,2673.1,2672.9,0.3741]
[1727121624456,0.9721393,2673.1,2672.8,40.8]
[1727121624662,1.3462093,2673.1,2673.0,0.37409]
[1727121625053,1.3462093,2673.1,2672.9,0.37409]
[1727121625347,0.37409,2673.0,2672.8,41.17411]
[1727121625749,4.67686,2672.9,2672.3,1.1005]
[1727121625961,1.40373,2672.8,2672.6,0.37414]
[1727121626155,2.48273,2672.8,2672.6,40.8]
[1727121626864,1.079,2672.8,2672.7,0.37413]
[1727121627066,0.9721393,2673.0,2672.9,0.3741]
[1727121627372,2.56978572,2673.1,2672.9,0.3741]
[1727121627373,0.37408,2673.1,2672.9,0.3741]
[1727121627555,0.37408,2673.1,2672.8,0.37411]
[1727121627556,0.37409,2673.0,2672.8,0.37411]
[1727121627756,0.3741,2672.9,2672.8,0.37411]
[1727121627960,0.3741,2673.0,2672.8,0.37411]
[1727121628759,1.3462193,2673.1,2672.9,0.3741]
[1727121628950,0.37408,2673.1,2672.9,0.3741]
[1727121629153,0.37409,2673.0,2672.8,0.37411]
[1727121629354,0.37408,2673.1,2672.9,0.3741]
[1727121629658,3.1620393,2673.2,2673.0,0.37409]
[1727121629659,3.5361093,2673.2,2673.0,0.37409]
[1727121629858,0.37408,2673.1,2672.9,0.3741]
[1727121630062,3.5361093,2673.2,2673.0,0.37409]
[1727121630365,3.5361093,2673.2,2673.1,0.37407]
[1727121630366,3.1620393,2673.2,2673.1,0.37407]
[1727121630552,2.1899,2673.2,2673.1,0.37407]
[1727121630954,2.56396,2673.2,2673.0,0.37408]
[1727121631564,2.56396,2673.2,2673.1,0.37407]
[1727121632666,2.1899,2673.2,2673.1,0.37407]
[1727121632857,2.56396,2673.2,2673.1,0.37407]
[1727121633458,2.56396,2673.2,2673.0,0.37408]
[1727121633669,2.1899,2673.2,2673.0,0.37408]
[1727121633873,2.56397,2673.2,2672.9,2.1886]
[1727121634170,0.37407,2673.1,2672.9,2.56269]
[1727121634360,0.37407,2673.1,2673.0,0.37409]
[1727121634666,0.37407,2673.1,2672.9,2.1886]
[1727121634667,2.56397,2673.2,2673.1,0.37407]
[1727121634873,2.56397,2673.2,2673.0,0.37408]
[1727121634874,0.37407,2673.1,2673.0,0.37408]
[1727121635276,0.37407,2673.1,2672.9,2.56269]
[1727121635869,0.37407,2673.1,2673.0,0.37409]
[1727121636073,2.56397,2673.2,2673.0,0.37409]
[1727121636270,0.37408,2673.1,2672.9,2.56269]
[1727121637272,0.37408,2673.1,2673.0,0.37409]
[1727121637469,11.6481493,2673.1,2672.6,40.8]
[1727121637667,0.37419,2672.3,2672.2,3.2078]
[1727121638366,0.37423,2672.0,2671.9,2.1218]
[1727121638566,6.9502,2672.3,2671.9,2.1218]
[1727121638567,0.37422,2672.1,2671.9,2.1218]
[1727121638773,0.37422,2672.1,2671.9,42.9218]
[1727121638976,0.37422,2672.1,2671.9,43.29604]
[1727121639281,0.37421,2672.2,2671.9,43.29604]
[1727121639578,0.37421,2672.1,2671.9,43.29604]
[1727121639968,0.37421,2672.1,2671.9,41.17424]
[1727121640670,0.37421,2672.2,2672.0,0.37423]
[1727121640872,0.37421,2672.2,2671.9,41.17423]
[1727121641266,0.37421,2672.1,2671.9,41.17423]
[1727121641467,0.37421,2672.1,2671.9,40.8]
[1727121642067,1.113,2672.0,2671.9,40.8]
[1727121642571,1.113,2672.0,2671.9,41.17424]
[1727121643074,1.113,2672.0,2671.9,40.8]
[1727121643483,1.113,2672.0,2671.9,41.17424]
[1727121645580,1.48723,2672.0,2671.9,40.8]
[1727121645984,0.37426,2671.8,2671.5,0.37429]
[1727121646582,1.49674,2671.9,2671.6,41.17427]
[1727121646974,1.1225,2671.9,2671.6,40.8]
[1727121647870,1.49674,2671.9,2671.6,41.17427]
[1727121648877,1.49675,2671.9,2671.6,41.17428]
[1727121649976,0.37426,2671.8,2671.6,40.8]
[1727121650376,2.219,2671.9,2671.6,41.17428]
[1727121650377,2.59325,2671.9,2671.6,41.17428]
[1727121652982,1.49675,2671.9,2671.6,41.17428]
[1727121653171,1.49675,2671.9,2671.7,0.37427]
[1727121653878,1.3463793,2672.0,2671.7,1.45956]
[1727121654074,1.3463793,2672.0,2671.8,1.0893]
[1727121654273,1.3463793,2672.0,2671.8,1.46355]
[1727121654472,1.3463793,2672.0,2671.8,1.0893]
[1727121655176,0.9721393,2671.9,2671.8,1.0893]
[1727121655581,0.9721393,2672.0,2671.8,1.0893]
[1727121655788,2.102,2672.2,2672.0,0.37422]
[1727121655789,3.4483493,2672.2,2672.0,0.37422]
[1727121656083,3.4483493,2672.2,2671.9,0.37423]
[1727121656277,0.37422,2672.1,2671.9,0.37423]
[1727121656477,0.37422,2672.1,2671.8,4.67135]
[1727121656673,1.3463593,2672.1,2671.8,1.46355]
[1727121657084,1.3463593,2672.1,2671.9,0.37424]
[1727121657482,0.9721393,2672.1,2671.9,0.37424]
[1727121657681,0.37422,2672.1,2671.9,0.37424]
[1727121657879,1.3463593,2672.1,2671.8,4.67135]
[1727121658288,0.9721393,2672.1,2671.8,4.67135]
[1727121658501,1.3463593,2672.1,2671.8,4.67135]
[1727121658686,1.3463593,2672.1,2671.9,0.37424]
[1727121659081,0.9721393,2672.1,2671.9,0.37424]
[1727121659391,0.9721393,2672.1,2672.0,0.37423]
[1727121659588,1.3463493,2672.2,2672.0,0.37423]
[1727121659791,0.37421,2672.1,2671.9,0.37423]
[1727121659988,1.3463493,2672.1,2671.9,0.37423]
[1727121660693,1.3463493,2672.1,2671.8,1.46355]
[1727121660694,0.37423,2672.0,2671.8,1.46355]
[1727121661082,1.3463593,2672.1,2671.9,0.37424]
[1727121661594,0.9721393,2672.1,2671.9,0.37424]
[1727121661787,1.3463593,2672.1,2671.9,0.37424]
[1727121665196,0.9721393,2672.0,2671.9,0.37424]
[1727121667002,0.9721393,2672.0,2670.8,0.37438]
[1727121667003,0.37435,2671.1,2670.8,0.37438]
[1727121667195,3.7424,2671.9,2670.7,3.2078]
[1727121667196,0.3744,2670.8,2670.7,3.2078]
[1727121667398,0.37443,2670.6,2670.4,2.1344]
[1727121667597,0.37443,2670.6,2670.5,40.8]
[1727121667791,0.37444,2670.5,2670.1,0.37449]
[1727121668092,0.37444,2670.5,2670.0,0.2]
[1727121668093,0.97135501,2670.5,2670.0,2.3344]
[1727121668295,0.97135501,2670.5,2670.1,40.8]
[1727121668494,2.42929529,2670.9,2670.4,4.14394]
[1727121668495,0.97135501,2670.9,2670.4,4.14394]
[1727121668695,0.97135501,2671.1,2670.9,0.37438]
[1727121669093,0.97135501,2671.1,2671.0,2.1344]
[1727121669294,1.34570501,2671.1,2671.0,2.1344]
[1727121669499,0.97062886,2671.1,2671.0,2.1344]
[1727121671093,0.97050875,2671.1,2671.0,2.1344]
[1727121671698,0.97050875,2671.1,2671.0,2.51877]
[1727121672095,1.34484875,2671.2,2671.0,2.51877]
[1727121672507,0.97050875,2671.4,2671.1,3.744]
[1727121672806,0.3743,2671.5,2671.2,0.37434]
[1727121672998,1.34480875,2671.5,2671.2,0.37434]
[1727121673397,1.34480875,2671.5,2671.2,0.37433]
[1727121673398,0.97050875,2671.5,2671.2,0.37433]
[1727121673604,1.34481875,2671.5,2671.2,0.37433]
[1727121673906,0.37431,2671.4,2671.3,40.8]
[1727121674302,1.34481875,2671.4,2671.3,40.8]
[1727121674493,0.97050875,2671.4,2671.3,40.8]
[1727121674810,1.83188717,2671.5,2671.3,40.8]
[1727121674811,1.34481875,2671.5,2671.3,40.8]
[1727121675113,3.56899875,2671.6,2671.3,41.17432]
[1727121675403,0.97050875,2671.7,2671.5,0.3743]
[1727121675705,0.97050875,2671.8,2671.6,5.8552]
[1727121676005,0.97050875,2672.0,2671.8,0.37425]
[1727121676200,0.97050875,2672.0,2671.3,40.8]
[1727121676201,0.93561,2671.9,2671.3,40.8]
[1727121676398,0.93561,2671.9,2671.4,1.1269]
[1727121676399,2.03810875,2671.9,2671.4,1.1269]
[1727121676605,0.97050875,2672.0,2671.7,0.37426]
[1727121676802,0.37425,2671.9,2671.6,0.37427]
[1727121677005,2.01120875,2672.1,2671.6,1.44438]
[1727121677006,0.37426,2671.8,2671.6,1.44438]
[1727121677209,0.37429,2671.6,2671.4,1.50121]
[1727121677609,0.37429,2671.6,2671.4,1.1269]
[1727121678303,0.37429,2671.6,2671.4,1.5012]
[1727121678504,2.41238875,2671.7,2671.4,1.5012]
[1727121679008,0.37429,2671.6,2671.4,1.5012]
[1727121679308,0.97050875,2671.6,2671.4,1.50121]
[1727121679503,2.37779875,2671.6,2671.4,1.50121]
[1727121680210,0.97050875,2671.5,2671.4,1.50121]
[1727121680506,0.97050875,2671.6,2671.5,0.3743]
[1727121680703,0.97050875,2671.7,2671.6,0.37428]
[1727121681303,1.45757717,2671.7,2671.6,0.37428]
[1727121681909,2.31770623,2671.7,2671.4,1.1269]
[1727121682209,0.18725911,2671.6,2671.5,0.37429]
[1727121682409,1.45892333,2671.6,2671.5,0.37429]
[1727121682711,0.97274904,2671.6,2671.5,14.26104]
[1727121683012,0.97274904,2671.6,2671.5,15.19679]
[1727121685408,1.45892333,2671.7,2671.6,1.31]
[1727121685610,1.45892333,2671.7,2671.6,6.1425]
[1727121686900,1.45892333,2671.7,2671.6,5.20678]
[1727121687101,1.94343623,2671.8,2671.7,0.37427]
[1727121688416,2.1306749,2671.8,2671.6,0.37427]
[1727121688619,0.37428,2671.6,2671.5,0.3743]
[1727121688915,2.32145701,2671.6,2671.5,0.3743]
[1727121689214,2.50869568,2671.6,2671.5,0.3743]
[1727121689811,1.83475379,2671.6,2671.5,0.3743]
[1727121690319,1.46047379,2671.6,2671.5,0.3743]
[1727121692913,0.18726796,2671.6,2671.5,0.3743]
[1727121693111,1.64842733,2671.6,2671.5,0.3743]
[1727121693417,1.64841882,2671.6,2671.5,0.3743]
[1727121693719,1.46115937,2671.6,2671.5,0.3743]
[1727121695115,1.46115937,2671.6,2671.5,1.31005]
[1727121695314,1.46115937,2671.7,2671.6,0.37428]
[1727121695518,1.46115937,2671.7,2671.6,1.44448]
[1727121696616,1.64840571,2671.7,2671.6,1.44448]
[1727121696815,1.46115937,2671.7,2671.6,1.44448]
[1727121697711,1.46115937,2671.7,2671.6,0.37428]
[1727121698319,2.02267881,2671.7,2671.6,0.37428]
[1727121698517,0.56151944,2671.7,2671.6,0.37428]
[1727121698712,1.83467403,2671.7,2671.6,0.37428]
[1727121698916,0.56151944,2671.7,2671.6,0.37428]
[1727121699614,0.37429,2671.6,2671.5,0.37429]
[1727121699824,2.55784572,2671.6,2671.5,0.37429]
[1727121700120,3.11938688,2671.6,2671.5,0.56896446]
[1727121700414,2.74510688,2671.6,2671.5,0.56896446]
[1727121700621,1.28476116,2671.6,2671.5,0.56896446]
[1727121700922,2.74511934,2671.6,2671.5,0.56896446]
[1727121701216,1.28476116,2671.6,2671.5,0.56896446]
[1727121701427,2.74514518,2671.6,2671.5,0.56896446]
[1727121701814,1.28476116,2671.6,2671.5,0.56896446]
[1727121702124,3.11940761,2671.6,2671.5,0.56896446]
[1727121702318,1.28476116,2671.6,2671.5,0.56896446]
[1727121705029,3.04467701,2671.6,2671.5,0.56896446]
[1727121705220,3.23193817,2671.6,2671.5,0.56896446]
[1727121705818,2.13443817,2671.6,2671.5,0.56896446]
[1727121706017,1.94717701,2671.6,2671.5,0.56896446]
[1727121706219,2.13443817,2671.6,2671.5,0.56896446]
[1727121709022,0.18726116,2671.6,2671.5,0.56896446]
[1727121709324,2.13443817,2671.6,2671.5,0.56896446]
[1727121709722,2.13443817,2671.6,2671.5,0.56897446]
[1727121710324,2.13443863,2671.6,2671.5,0.56897446]
[1727121710730,1.94717701,2671.6,2671.5,0.56897446]
[1727121712017,1.94717701,2671.7,2671.6,0.37428]
[1727121712229,2.13443728,2671.7,2671.6,0.37428]
[1727121713134,2.13443728,2671.7,2671.6,0.56895446]
[1727121714230,2.80356529,2671.8,2671.7,0.37427]
[1727121714426,4.40504865,2671.8,2671.7,0.37427]
[1727121714614,4.59230263,2671.8,2671.7,0.37427]
[1727121715120,4.59230263,2671.8,2671.7,0.56894446]
[1727121715121,2.16327841,2671.8,2671.7,0.56894446]
[1727121719928,2.16518964,2671.8,2671.7,0.56894446]
[1727121720626,5.09811532,2671.8,2671.7,0.56894446]
[1727121721137,5.87390897,2671.8,2671.7,0.56894446]
[1727121721332,19.93863293,2671.8,2671.0,0.9870898]
[1727121721541,2.32754425,2671.1,2671.0,0.38436]
[1727121721833,2.16542424,2671.1,2671.0,0.01]
[1727121722031,4.42872424,2671.1,2671.0,0.01]
[1727121722328,4.05437424,2671.1,2671.0,0.38437]
[1727121722532,6.86931065,2671.1,2671.0,0.01]
[1727121722727,0.37441,2670.7,2670.6,3.2078]
[1727121722929,0.37443,2670.6,2670.4,0.37444]
[1727121723231,1.1239,2670.5,2670.4,0.37444]
[1727121723432,2.13830971,2670.5,2670.4,1.31058]
[1727121723735,0.97557604,2670.5,2670.4,5.05539]
[1727121723931,0.97557604,2670.5,2670.4,11.99153]
[1727121724235,0.97557604,2670.6,2670.5,2.24664]
[1727121724536,0.97557604,2670.7,2670.6,1.31049]
[1727121724737,0.97557604,2670.7,2670.6,5.99136]
[1727121724925,0.97557604,2670.7,2670.6,11.99136]
[1727121725123,0.97557604,2670.7,2670.6,52.79136]
[1727121725432,1.46325964,2670.8,2670.7,2.24647]
[1727121725433,0.97557604,2670.8,2670.7,2.24647]
[1727121725727,0.97557604,2670.8,2670.7,5.99047]
[1727121725928,0.97557604,2670.8,2670.7,11.99047]
[1727121726930,1.46325964,2671.0,2670.7,11.99047]
[1727121726931,1.46325964,2671.0,2670.8,0.936]
[1727121727228,1.95098182,2671.1,2671.0,0.37437]
[1727121729636,1.95098182,2671.1,2671.0,1.3103]
[1727121729833,2.13826917,2671.1,2671.0,1.3103]
[1727121730039,1.95098182,2671.1,2671.0,1.3103]
[1727121730335,2.62782864,2671.2,2671.0,1.3103]
[1727121730336,0.97487831,2671.2,2671.1,2.24613]
[1727121730537,0.97487831,2671.2,2671.1,9.19793]
[1727121730726,1.46222342,2671.3,2671.2,1.3102]
[1727121730922,1.46222342,2671.3,2671.2,42.1102]
[1727121731126,1.46222342,2671.3,2671.2,45.8534]
[1727121732837,2.13823861,2671.4,2671.3,0.37433]
[1727121733037,1.95098182,2671.4,2671.3,0.37433]
[1727121733547,2.13824764,2671.4,2671.3,0.37433]
[1727121733730,2.13824764,2671.4,2671.3,1.31015]
[1727121733932,0.18726582,2671.4,2671.3,14.61917]
[1727121734230,1.46253508,2671.4,2671.3,8.61917]
[1727121734434,1.6498009,2671.4,2671.3,8.61917]
[1727121734642,1.46253508,2671.4,2671.3,8.61917]
[1727121735139,1.46253508,2671.5,2671.4,1.3101]
[1727121735338,1.95098182,2671.6,2671.5,0.3743]
[1727121735838,1.95098182,2671.6,2671.5,1.31005]
[1727121736041,2.1382361,2671.6,2671.5,1.31005]
[1727121737131,2.13823317,2671.6,2671.5,3.94005]
[1727121737747,1.95098182,2671.6,2671.5,3.94005]
[1727121738147,2.13823317,2671.6,2671.5,3.94005]
[1727121738340,1.95098182,2671.6,2671.5,3.94005]
[1727121738735,2.13823317,2671.6,2671.5,3.94005]
[1727121739042,2.13823317,2671.6,2671.5,8.619]
[1727121739244,1.95098182,2671.6,2671.5,8.619]
[1727121740343,2.13823317,2671.6,2671.5,8.619]
[1727121740535,1.65117328,2671.6,2671.5,8.619]
[1727121740843,1.65117328,2671.6,2671.5,4.8758]
[1727121741149,1.95098182,2671.7,2671.6,1.31]
[1727121742042,2.13822048,2671.7,2671.6,1.31]
[1727121742347,2.0969,2671.9,2671.6,0.93572]
[1727121742540,1.78945616,2671.8,2671.7,0.37427]
[1727121743043,1.78945616,2671.8,2671.7,1.30995]
[1727121743537,2.43999982,2671.8,2671.7,4.87563]
[1727121743738,1.78945616,2671.8,2671.7,8.08343]
[1727121743944,1.78945616,2671.8,2671.7,7.14775]
[1727121744143,4.22939686,2671.8,2671.7,7.14775]
[1727121746640,4.2290474,2671.8,2671.7,7.14775]
[1727121749537,1.7891067,2671.8,2671.7,7.14775]
[1727121749734,4.2290474,2671.8,2671.7,7.14775]
[1727121750147,1.7891067,2671.8,2671.7,7.14775]
[1727121750342,1.46347692,2671.8,2671.7,7.14775]
[1727121753350,1.46347692,2671.8,2671.7,11.82663]
[1727121753538,3.07231994,2671.9,2671.8,2.24556]
[1727121753739,0.97541994,2671.9,2671.8,2.24556]
[1727121753939,0.97541994,2671.9,2671.8,3.10266]
[1727121754335,0.97541994,2671.9,2671.8,14.71636]
[1727121754545,0.97541994,2672.1,2671.9,0.93561]
[1727121754846,2.29557692,2672.2,2672.1,2.24529]
[1727121755151,2.48277941,2672.2,2672.1,2.24529]
[1727121755348,2.29557692,2672.2,2672.1,2.24529]
[1727121756041,2.29557692,2672.2,2672.1,43.04529]
[1727121756844,2.36247692,2672.3,2672.2,1.30971]
[1727121757044,0.899,2672.3,2672.2,2.24522]
[1727121757450,2.84899609,2672.3,2672.2,2.24522]
[1727121757751,3.03619133,2672.3,2672.2,2.24522]
[1727121757940,0.18719524,2672.3,2672.2,2.24522]
[1727121758137,1.94998937,2672.3,2672.2,43.04522]
[1727121758341,2.13718461,2672.3,2672.2,43.04522]
[1727121758539,2.13718461,2672.3,2672.2,46.78762]
[1727121760052,0.18719524,2672.3,2672.2,46.78762]
[1727121760242,2.85638937,2672.4,2672.3,1.30966]
[1727121760446,3.04357685,2672.4,2672.3,7.14746]
[1727121762557,3.04357685,2672.4,2672.3,5.72746]
[1727121763752,1.09358748,2672.4,2672.3,5.72746]
[1727121764745,1.09358748,2672.4,2672.3,4.79199]
[1727121765458,0.9064,2672.4,2672.3,4.79199]
[1727121767052,0.93547,2672.3,2672.0,0.37421]
[1727121767355,0.97351857,2672.2,2672.1,0.3742]
[1727121767556,5.20296884,2672.2,2672.1,0.3742]
[1727121768446,5.57717884,2672.2,2672.1,0.3742]
[1727121768859,5.57717884,2672.2,2672.0,40.8]
[1727121768860,0.37421,2672.1,2672.0,41.17422]
[1727121769054,0.37421,2672.1,2671.9,3.58203]
[1727121769055,0.37423,2672.0,2671.9,3.58203]
[1727121769254,2.11793,2672.0,2671.9,3.58203]
[1727121769451,3.09148642,2672.0,2671.9,44.38203]
[1727121771452,3.57849884,2672.0,2671.9,44.38203]
[1727121771650,2.11793,2672.0,2671.9,44.38203]
[1727121772157,1.7437,2672.0,2671.9,44.38203]
[1727121772462,3.09218052,2672.0,2671.9,44.38203]
[1727121772658,3.20426884,2672.0,2671.9,44.38203]
[1727121772856,3.20426884,2672.0,2671.9,45.31764]
[1727121772857,1.7437,2672.0,2671.9,45.31764]
[1727121773058,2.71799238,2672.0,2671.9,45.31764]
[1727121773957,0.97429238,2672.1,2672.0,1.30981]
[1727121774163,0.97429238,2672.1,2672.0,3.93981]
[1727121774359,0.97429238,2672.1,2672.0,4.87539]
[1727121774558,0.97429238,2672.2,2672.1,1.30975]
[1727121775061,0.97429238,2672.2,2672.1,5.89065]
[1727121775458,3.17786884,2672.3,2672.2,0.3742]
[1727121775656,3.36506849,2672.3,2672.2,0.3742]
[1727121778151,3.36722837,2672.3,2672.2,0.3742]
[1727121778353,2.29632872,2672.3,2672.2,3.93971]
[1727121778553,2.29632872,2672.3,2672.2,0.3742]
[1727121778760,2.48352996,2672.3,2672.2,0.3742]
[1727121778957,1.02080124,2672.3,2672.2,0.3742]
[1727121779171,3.18325413,2672.3,2672.2,0.3742]
[1727121779366,0.3742,2672.2,2672.1,0.3742]
[1727121779565,4.23351702,2672.2,2672.1,0.3742]
[1727121779864,0.18720124,2672.2,2672.1,0.3742]
[1727121780353,4.23353936,2672.2,2672.1,0.3742]
[1727121780961,0.18720124,2672.2,2672.1,0.3742]
[1727121781357,4.23350374,2672.2,2672.1,0.3742]
[1727121783854,4.23350374,2672.2,2672.1,3.93974]
[1727121784054,0.18720124,2672.2,2672.1,7.14754]
[1727121784264,1.79443815,2672.2,2672.1,3.0042]
[1727121784562,4.23437885,2672.2,2672.1,3.0042]
[1727121785263,0.18720124,2672.2,2672.1,3.0042]
[1727121785465,1.79470708,2672.2,2672.1,3.0042]
[1727121785666,4.23464778,2672.2,2672.1,3.0042]
[1727121785866,2.62714194,2672.2,2672.1,6.212]
[1727121786070,0.37423,2672.0,2671.9,41.17423]
[1727121786365,2.81463456,2672.0,2671.9,0.37424]
[1727121786564,4.60962511,2672.0,2671.9,0.37424]
[1727121786766,3.01692871,2672.0,2671.9,0.37424]
[1727121787460,3.3619486,2672.0,2671.9,0.37424]
[1727121789571,1.40933124,2672.0,2671.9,0.37424]
[1727121789962,3.17477433,2672.0,2671.9,0.37424]
[1727121790163,3.36197557,2672.0,2671.9,0.37424]
[1727121790463,1.40933124,2672.0,2671.9,0.37424]
[1727121793062,1.40936465,2672.0,2671.9,0.37424]
[1727121793661,1.03513465,2672.0,2671.9,0.37424]
[1727121793866,1.40936465,2672.0,2671.9,0.37424]
[1727121794064,1.03513465,2672.0,2671.9,0.37424]
[1727121794373,1.03513465,2672.0,2671.9,1.58424]
[1727121794570,2.64391414,2672.0,2671.9,1.58424]
[1727121795869,3.29021367,2672.0,2671.9,1.58424]
[1727121796175,4.89899316,2672.0,2671.9,1.58424]
[1727121796471,2.64391414,2672.0,2671.9,1.58424]
[1727121797667,2.64473112,2672.0,2671.9,1.58424]
[1727121798573,3.01896112,2672.0,2671.9,1.58424]
[1727121798973,2.64473112,2672.0,2671.9,1.58424]
[1727121799374,5.08852013,2672.0,2671.9,1.58424]
[1727121799572,2.64473112,2672.0,2671.9,1.58424]
[1727121799973,3.29174165,2672.0,2671.9,2.51985]
[1727121800176,5.08857277,2672.0,2671.9,2.51985]
[1727121801882,2.64473112,2672.0,2671.9,2.51985]
[1727121802477,1.03512957,2672.0,2671.9,2.51985]
[1727121803085,2.9899458,2672.0,2671.9,2.51985]
[1727121803379,1.03512957,2672.0,2671.9,2.51985]
[1727121803879,2.80272172,2672.0,2671.9,2.51985]
[1727121804188,2.98995129,2672.0,2671.9,2.51985]
[1727121804380,1.03512957,2672.0,2671.9,2.51985]
[1727121804981,2.14214775,2672.0,2671.9,2.51985]
[1727121805683,1.95491818,2672.0,2671.9,2.51985]
[1727121806775,2.63111908,2672.1,2671.9,2.51985]
[1727121806985,2.63111908,2672.1,2672.0,0.37423]
[1727121807185,2.44388951,2672.1,2672.0,0.37423]
[1727121807486,4.24097026,2672.1,2672.0,0.37423]
[1727121809182,1.79708075,2672.1,2671.8,3.2078]
[1727121809483,0.37433,2671.3,2671.2,0.37432]
[1727121809683,2.44342718,2671.3,2671.2,0.37432]
[1727121809884,0.37432,2671.4,2671.3,0.37433]
[1727121810088,4.7291392,2671.5,2671.4,0.37431]
[1727121810306,1.79710135,2671.5,2671.4,3.45589]
[1727121810581,2.14150231,2671.5,2671.4,5.32751]
[1727121810801,2.14150231,2671.5,2671.4,7.19909]
[1727121810802,1.4657456,2671.5,2671.4,7.19909]
[1727121811777,1.4657456,2671.5,2671.4,9.00959]
[1727121812389,1.4657456,2671.5,2671.4,10.42959]
[1727121813682,1.4657456,2671.6,2671.5,1.31005]
[1727121813984,0.0737456,2671.6,2671.5,10.0646]
[1727121814180,1.9542549,2671.8,2671.7,2.24563]
[1727121814386,1.9542549,2671.8,2671.7,8.61883]
[1727121814690,2.62996435,2672.0,2671.8,0.93565]
[1727121814887,2.4427521,2672.0,2671.9,5.39535]
[1727121815392,2.4427521,2672.1,2672.0,0.37423]
[1727121815992,4.22430732,2672.1,2672.0,0.37423]
[1727121816484,4.22430732,2672.1,2672.0,4.87539]
[1727121816684,2.14189896,2672.1,2672.0,9.46509]
[1727121816889,1.95468651,2672.2,2672.1,2.24529]
[1727121817081,2.14187962,2672.2,2672.1,2.24529]
[1727121817281,1.95468651,2672.3,2672.2,1.30971]
[1727121817592,2.4427521,2672.4,2672.2,1.30971]
[1727121817593,1.95468651,2672.4,2672.3,0.37419]
[1727121818087,1.95468651,2672.4,2672.3,1.30966]
[1727121818393,0.1871885,2672.4,2672.3,1.30966]
[1727121818582,1.95468651,2672.4,2672.3,1.30966]
[1727121819488,0.914,2672.7,2672.3,1.30966]
[1727121819489,2.4427521,2672.8,2672.5,1.8708]
[1727121819791,1.729,2673.0,2672.8,0.3741]
[1727121819982,0.37412,2672.8,2672.7,3.2078]
[1727121820285,0.37412,2672.8,2672.6,0.37413]
[1727121820484,2.8168721,2672.8,2672.6,0.37413]
[1727121820786,2.8168721,2672.8,2672.7,40.8]
[1727121820983,4.4029554,2672.8,2672.7,40.8]
[1727121821180,1.96015491,2672.8,2672.7,41.17413]
[1727121821384,0.37412,2672.8,2672.7,41.17413]
[1727121823592,0.37411,2672.9,2672.8,0.37412]
[1727121823796,4.4036336,2672.9,2672.8,0.37412]
[1727121823989,8.1452336,2672.9,2672.8,0.37412]
[1727121824386,5.7024815,2672.9,2672.8,0.37412]
[1727121824691,8.24094454,2672.9,2672.8,0.37412]
[1727121825692,6.65417304,2672.9,2672.8,0.37412]
[1727121825882,8.24057959,2672.9,2672.8,0.37412]
[1727121826291,4.12486959,2672.9,2672.8,0.37412]
[1727121826486,7.05226119,2672.9,2672.8,0.37412]
[1727121826787,1.58640655,2672.9,2672.8,0.37412]
[1727121828091,1.58640655,2672.9,2672.8,1.30942]
[1727121828291,4.6563916,2673.0,2672.9,0.3741]
[1727121828492,5.0304816,2673.0,2672.9,0.3741]
[1727121829387,4.6563916,2673.0,2672.9,0.3741]
[1727121830598,3.31485129,2673.0,2672.9,0.3741]
[1727121834407,3.31485129,2673.0,2672.9,1.30936]
[1727121835212,1.729,2673.0,2672.9,1.30936]
[1727121835407,1.729,2673.0,2672.9,0.3741]
[1727121835708,1.729,2673.0,2672.9,1.30936]
[1727121837301,1.729,2673.0,2672.9,0.3741]
[1727121837507,1.729,2673.0,2672.9,1.30936]
[1727121838210,1.729,2673.0,2672.9,0.3741]
[1727121838412,1.729,2673.0,2672.7,3.2078]
[1727121838617,0.37412,2672.9,2672.8,0.37411]
[1727121839014,4.11572,2672.9,2672.8,0.37411]
[1727121841824,2.1031,2673.0,2672.9,0.3741]
[1727121842027,1.729,2673.0,2672.9,1.30936]
[1727121845119,1.729,2673.0,2672.9,0.3741]
[1727121845825,2.10309,2673.0,2672.9,0.3741]
[1727121846413,0.37412,2672.8,2672.7,3.58192]
[1727121846725,1.34807815,2672.8,2672.7,3.58192]
[1727121846919,0.37412,2672.8,2672.7,3.58192]
[1727121847121,1.34808572,2672.8,2672.7,3.58192]
[1727121847625,0.37412,2672.8,2672.7,3.58192]
[1727121848328,0.37413,2672.7,2672.6,0.37414]
[1727121848528,2.81085711,2672.7,2672.6,0.37414]
[1727121848823,4.39405404,2672.7,2672.6,0.37414]
[1727121849030,0.37419,2672.3,2672.2,0.37419]
[1727121849220,0.93537,2672.6,2672.0,3.2078]
[1727121849221,3.36990503,2672.4,2672.0,3.2078]
[1727121849418,2.86114237,2672.2,2672.1,41.17421]
[1727121849618,0.914,2672.2,2672.1,41.17421]
[1727121849927,1.8373,2672.2,2672.1,41.17421]
[1727121850133,2.2115,2672.2,2672.1,41.17421]
[1727121850428,1.8373,2672.2,2672.1,41.17421]
[1727121852221,2.80865503,2672.3,2672.2,0.3742]
[1727121852422,4.39270252,2672.3,2672.2,0.3742]
[1727121852931,0.3742,2672.2,2672.1,41.17421]
[1727121853424,2.80866503,2672.3,2672.2,0.3742]